bitfinex/quotes_ETHUSD_20241004
["timestamp","ask_amount","ask_price","bid_price","bid_amount"]
[1728069984513,0.00827474,2433.1,2433.0,16.90419591]
[1728069985573,0.00827474,2433.1,2433.0,16.91197006]
[1728069986214,0.00827474,2433.1,2433.0,17.25949554]
[1728069986513,0.00827474,2433.1,2433.0,16.91294178]
[1728069986720,0.00827474,2433.1,2433.0,17.26047151]
[1728069986903,0.00827474,2433.1,2433.0,16.49837396]
[1728069987231,0.00827474,2433.1,2433.0,17.26049457]
[1728069989636,0.00827474,2433.1,2433.0,15.1112985]
[1728069989843,0.00827474,2433.1,2433.0,17.26049457]
[1728069990005,0.00827474,2433.1,2433.0,15.1112985]
[1728069990200,0.00827474,2433.1,2433.0,17.26049457]
[1728069990541,0.00827474,2433.1,2433.0,17.26278081]
[1728069990704,0.00827474,2433.1,2433.0,15.1112985]
[1728069991149,0.00827474,2433.1,2433.0,16.83254445]
[1728069993304,0.00827474,2433.1,2433.0,16.48530596]
[1728069993514,0.00827474,2433.1,2433.0,16.8330967]
[1728069996612,0.00827474,2433.1,2433.0,16.83325477]
[1728069996825,0.00827474,2433.1,2433.0,16.41837265]
[1728069997163,0.00827474,2433.1,2433.0,16.83347546]
[1728069999983,0.00827474,2433.1,2433.0,16.41838768]
[1728070000130,0.00827474,2433.1,2433.0,16.48552958]
[1728070000329,0.00827474,2433.1,2433.0,16.83350814]
[1728070001133,0.00827474,2433.1,2433.0,17.49764407]
[1728070002572,0.00827474,2433.1,2433.0,37.21764407]
[1728070003328,0.00827474,2433.1,2433.0,37.21779176]
[1728070003740,0.00827474,2433.1,2433.0,37.64956832]
[1728070004694,0.00827474,2433.1,2433.0,37.65067235]
[1728070005625,0.00827474,2433.1,2433.0,35.6039206]
[1728070006481,0.00827474,2433.1,2433.0,35.17311995]
[1728070006681,0.00827474,2433.1,2433.0,33.10226085]
[1728070006911,0.00827474,2433.1,2433.0,33.45042307]
[1728070007113,0.00827474,2433.1,2433.0,32.37058836]
[1728070007315,0.00827474,2433.1,2433.0,32.68694053]
[1728070007617,0.00827474,2433.1,2433.0,35.60454135]
[1728070008301,0.00827474,2433.1,2433.0,33.45041481]
[1728070008486,0.00827474,2433.1,2433.0,35.60454135]
[1728070008686,0.00827474,2433.1,2433.0,35.18921986]
[1728070009525,0.00827474,2433.1,2433.0,33.03509332]
[1728070009824,0.00827474,2433.1,2433.0,35.18905839]
[1728070010134,0.00827474,2433.1,2433.0,35.18901813]
[1728070013588,0.00827474,2433.1,2433.0,34.52452411]
[1728070013825,0.00827474,2433.1,2433.0,35.188975]
[1728070014040,0.00827474,2433.1,2433.0,30.10963207]
[1728070014241,0.00827474,2433.1,2433.0,31.19882636]
[1728070014448,0.00827474,2433.1,2433.0,31.86346516]
[1728070015238,0.00827474,2433.1,2433.0,29.47556505]
[1728070015439,0.00827474,2433.1,2433.0,31.19882636]
[1728070015654,0.00827474,2433.1,2433.0,31.86348987]
[1728070016347,0.00827474,2433.1,2433.0,31.86356426]
[1728070016855,0.00827474,2433.1,2433.0,30.85069076]
[1728070017046,0.00827474,2433.1,2433.0,31.51542643]
[1728070017247,0.00827474,2433.1,2433.0,31.86370714]
[1728070017612,0.00827474,2433.1,2433.0,31.63027353]
[1728070017912,0.00827474,2433.1,2433.0,32.29506392]
[1728070018405,0.00827474,2433.1,2433.0,32.98545563]
[1728070018813,0.00827474,2433.1,2433.0,32.55515144]
[1728070019522,0.00827474,2433.1,2433.0,36.98678387]
[1728070019708,0.00827474,2433.1,2433.0,37.76058387]
[1728070020453,0.00827474,2433.1,2433.0,36.0571274]
[1728070020609,0.00827474,2433.1,2433.0,37.41296343]
[1728070020816,0.00827474,2433.1,2433.0,37.76153758]
[1728070021015,0.00827474,2433.1,2433.0,35.60611434]
[1728070024241,0.00827474,2433.1,2433.0,38.74779379]
[1728070024655,0.00827474,2433.1,2433.0,35.38473156]
[1728070024885,0.00827474,2433.1,2433.0,37.97399379]
[1728070025182,0.00827474,2433.1,2433.0,35.38473156]
[1728070025479,0.00827474,2433.1,2433.0,37.97399379]
[1728070025645,0.00827474,2433.1,2433.0,33.97351908]
[1728070025846,0.00827474,2433.1,2433.0,32.95963793]
[1728070026048,0.00827474,2433.1,2433.0,33.62587369]
[1728070026355,0.00827474,2433.1,2433.0,32.06575489]
[1728070026667,0.00827474,2433.1,2433.0,32.93545498]
[1728070026846,0.00827474,2433.1,2433.0,38.07001761]
[1728070027249,0.00827474,2433.1,2433.0,38.07274222]
[1728070028969,0.00827474,2433.1,2433.0,32.2241506]
[1728070029178,0.76847474,2433.1,2433.0,24.78184585]
[1728070029348,0.76847474,2433.1,2433.0,23.70709442]
[1728070029678,0.76847474,2433.1,2433.0,1.84847852]
[1728070030069,0.76847474,2433.1,2433.0,0.5525021]
[1728070030394,0.76847474,2433.1,2433.0,5.95862852]
[1728070030688,0.76847474,2433.1,2433.0,5.5264226]
[1728070031370,0.76847474,2433.1,2433.0,4.6626521]
[1728070031576,0.76847474,2433.1,2433.0,8.09583662]
[1728070031577,0.00827474,2433.1,2433.0,8.09583662]
[1728070032092,0.00827474,2433.1,2433.0,6.91733637]
[1728070032383,0.00827474,2433.1,2433.0,10.67636167]
[1728070032547,0.00827474,2433.1,2433.0,11.01721526]
[1728070032746,0.00827474,2433.1,2433.0,12.58376427]
[1728070033592,0.00827474,2433.1,2433.0,16.38418196]
[1728070034351,0.00827474,2433.1,2433.0,18.01981926]
[1728070034661,0.00827474,2433.1,2433.0,20.6102145]
[1728070035064,0.00827474,2433.1,2433.0,40.3302145]
[1728070035678,1.39842721,2433.6,2433.5,4.1093]
[1728070035679,0.64412721,2433.6,2433.5,4.1093]
[1728070035997,0.7543,2434.1,2433.8,4.10863]
[1728070036167,0.7543,2434.1,2433.8,4.97182117]
[1728070036368,0.8284,2433.9,2433.8,4.97182117]
[1728070036771,0.8284,2433.9,2433.8,4.1087]
[1728070037608,0.8284,2433.9,2433.8,4.97182117]
[1728070038169,4.86185,2434.6,2434.1,4.10824]
[1728070038358,0.00827474,2434.2,2434.1,4.10824]
[1728070038757,0.76267474,2434.2,2434.1,4.10824]
[1728070039686,0.76267474,2434.2,2434.1,7.90865769]
[1728070040056,0.76267474,2434.2,2434.1,8.77177886]
[1728070040294,0.76267474,2434.2,2434.1,4.10824]
[1728070045308,0.76267474,2434.2,2434.0,4.10843]
[1728070045309,0.76267474,2434.2,2434.0,8.2168]
[1728070045517,0.76267474,2434.2,2434.0,4.10837]
[1728070045736,0.76267474,2434.2,2434.0,8.21674]
[1728070046373,0.76267474,2434.2,2433.9,4.10857]
[1728070049286,0.76267474,2434.2,2434.1,7.90870769]
[1728070049488,0.00827474,2434.2,2434.1,7.90870769]
[1728070051808,0.00827474,2434.2,2434.1,4.10829]
[1728070056077,0.82127474,2434.2,2434.0,4.10846]
[1728070056280,0.82127474,2434.2,2433.9,23.82861]
[1728070056476,0.00827474,2434.0,2433.9,23.82861]
[1728070056795,0.00827474,2434.0,2433.9,4.10861]
[1728070060536,0.7869,2433.9,2433.8,19.72]
[1728070060739,0.7869,2433.9,2433.5,4.10922]
[1728070060950,0.7869,2433.9,2433.6,4.10911]
[1728070061156,0.79517474,2433.6,2433.5,4.10922]
[1728070061305,0.79517474,2433.6,2433.2,19.72]
[1728070061640,0.7869,2433.2,2432.9,23.83021]
[1728070061803,0.00827474,2433.0,2432.9,23.52041769]
[1728070062000,0.00827474,2433.0,2432.9,23.83032]
[1728070062346,0.00827474,2433.0,2432.9,20.14669904]
[1728070062513,0.79517474,2433.0,2432.9,19.72]
[1728070063932,0.79517474,2433.0,2432.5,0.86312117]
[1728070064114,0.00827474,2433.0,2432.9,23.83032]
[1728070064314,0.00827474,2433.0,2432.9,4.11032]
[1728070064848,0.00827474,2433.0,2432.9,23.83032]
[1728070065345,0.00827474,2433.0,2432.8,8.77400886]
[1728070065346,0.79987474,2433.0,2432.8,4.11047]
[1728070065663,0.79987474,2433.0,2432.6,23.83071]
[1728070065954,0.00827474,2432.7,2432.6,23.83071]
[1728070067338,0.00827474,2432.7,2432.6,19.72]
[1728070068820,0.00827474,2432.7,2432.6,23.83082]
[1728070069125,0.00827474,2432.7,2432.6,19.72]
[1728070070552,0.00827474,2432.7,2432.5,0.42675875]
[1728070070919,0.7639,2432.6,2432.5,0.42675875]
[1728070072059,0.00827474,2432.7,2432.6,4.11082]
[1728070072621,0.00827474,2432.7,2432.6,7.91123769]
[1728070074218,0.00827474,2432.7,2432.6,4.11082]
[1728070083372,0.00827474,2432.7,2432.6,7.91123769]
[1728070083662,0.00827474,2432.7,2432.6,9.23671533]
[1728070084039,0.00827474,2432.7,2432.6,10.03271533]
[1728070084243,0.00827474,2432.7,2432.6,10.58271533]
[1728070087258,0.00827474,2432.7,2432.6,9.25723769]
[1728070088038,0.00827474,2432.7,2432.6,8.70723769]
[1728070090633,0.00827474,2432.7,2432.6,7.91123769]
[1728070091867,4.10966,2433.3,2432.6,7.91123769]
[1728070091868,4.10782,2434.4,2433.8,4.10878]
[1728070092068,4.10782,2434.4,2433.2,0.55]
[1728070092069,4.10756,2434.6,2434.1,4.10816]
[1728070092250,0.64404433,2435.0,2434.1,4.10816]
[1728070092251,4.10729,2434.7,2434.1,4.10816]
[1728070092452,4.10729,2434.7,2434.2,4.10803]
[1728070092693,0.821452,2434.6,2434.2,4.10803]
[1728070093056,0.821452,2434.6,2434.3,4.10794]
[1728070093395,4.10723,2434.8,2434.2,4.10799]
[1728070093396,4.10732,2434.7,2434.2,4.10799]
[1728070093551,4.10723,2434.8,2434.2,4.10799]
[1728070093751,4.10723,2434.8,2434.1,7.90860769]
[1728070093985,8.21499,2434.6,2434.1,4.10819]
[1728070094570,4.10745,2434.6,2434.1,4.10819]
[1728070094791,0.410745,2434.5,2434.1,8.2164]
[1728070094996,0.00827474,2434.2,2434.1,4.10819]
[1728070095180,0.00827474,2434.2,2434.1,12.27610769]
[1728070099379,0.64392065,2435.6,2435.2,4.10633]
[1728070099576,0.64392065,2435.6,2435.3,3.80041769]
[1728070100219,0.8108,2435.7,2435.3,3.80041769]
[1728070100667,0.491627,2435.6,2435.3,3.80041769]
[1728070102236,0.00827474,2435.4,2435.3,3.80041769]
[1728070103296,0.00827474,2435.4,2435.2,4.10633]
[1728070107717,0.00827474,2435.4,2435.2,8.21268]
[1728070108033,0.00827474,2435.4,2435.2,4.10633]
[1728070113999,0.7773,2435.3,2435.1,19.71172526]
[1728070114187,0.00827474,2435.2,2435.1,23.81830526]
[1728070115323,0.00827474,2435.2,2435.1,19.71172526]
[1728070115486,0.49745221,2435.2,2435.1,19.71172526]
[1728070116291,4.11470474,2435.2,2435.1,19.71172526]
[1728070117799,0.00827474,2435.2,2435.1,19.71073072]
[1728070120902,0.00827474,2435.2,2434.9,19.71073072]
[1728070121086,0.00827474,2435.0,2434.9,19.71073072]
[1728070121708,4.90084474,2435.0,2434.9,19.71073072]
[1728070121915,5.39092921,2435.0,2434.9,19.71073072]
[1728070123103,1.28415921,2435.0,2434.9,19.71073072]
[1728070123699,5.39092921,2435.0,2434.9,19.71073072]
[1728070123902,1.28415921,2435.0,2434.9,19.71073072]
[1728070124100,0.79407474,2435.0,2434.9,19.71073072]
[1728070125231,4.90084474,2435.0,2434.9,19.71073072]
[1728070125430,4.90084474,2435.0,2434.9,20.26024157]
[1728070125792,0.79407474,2435.0,2434.9,20.26024157]
[1728070126548,4.90084474,2435.0,2434.9,19.71073072]
[1728070126704,5.80159121,2435.0,2434.9,19.71073072]
[1728070127034,1.69482121,2435.0,2434.9,19.71073072]
[1728070129356,5.80159121,2435.0,2434.9,19.71073072]
[1728070134149,1.69482121,2435.0,2434.9,19.71073072]
[1728070135163,0.79407474,2435.0,2434.9,19.71073072]
[1728070135730,0.79407474,2435.0,2434.6,4.10743]
[1728070135964,0.00827474,2434.7,2434.6,4.10743]
[1728070138559,0.00827474,2434.7,2434.6,5.62114749]
[1728070138764,0.00827474,2434.7,2434.6,6.91582925]
[1728070138971,0.00827474,2434.7,2434.6,8.63702393]
[1728070140033,0.00827474,2434.7,2434.6,7.34234217]
[1728070140196,0.00827474,2434.7,2434.6,8.63702393]
[1728070141733,0.00827474,2434.7,2434.6,28.34775465]
[1728070143299,0.00827474,2434.7,2434.6,27.91176408]
[1728070143539,0.00827474,2434.7,2434.6,27.91235331]
[1728070143742,0.00827474,2434.7,2434.6,27.9123725]
[1728070144053,0.788,2436.5,2435.6,0.8224]
[1728070144256,4.10349,2437.0,2436.2,7.90505769]
[1728070144543,4.91317,2436.9,2436.4,7.90482769]
[1728070144741,5.323519,2436.9,2436.4,7.90482769]
[1728070145342,8.20759,2436.8,2436.4,3.80041769]
[1728070145545,4.10375,2436.8,2436.4,3.80041769]
[1728070146249,1.219849,2436.9,2436.4,7.90480769]
[1728070146398,0.00827474,2436.5,2436.4,7.90480769]
[1728070146996,0.00827474,2436.5,2436.4,9.91945046]
[1728070147708,0.00827474,2436.5,2436.4,12.91945046]
[1728070148029,0.00827474,2436.5,2436.4,13.46945046]
[1728070149669,0.00827474,2436.5,2436.4,12.91945046]
[1728070150457,0.00827474,2436.5,2436.4,32.63018118]
[1728070156241,0.00827474,2436.5,2436.4,26.81512072]
[1728070159056,0.00827474,2436.5,2436.4,28.12252072]
[1728070160735,0.64347116,2437.4,2437.2,4.10303]
[1728070160942,0.7625,2437.6,2437.3,3.80041769]
[1728070161196,0.64318834,2437.4,2437.3,3.80041769]
[1728070161345,0.7625,2437.6,2437.3,3.80041769]
[1728070161546,0.7625,2437.6,2437.1,3.80041769]
[1728070161858,1.248981,2437.6,2437.2,4.10306]
[1728070163366,0.7625,2437.6,2437.5,3.80041769]
[1728070163705,0.77077474,2437.6,2437.3,7.90319769]
[1728070163850,0.00827474,2437.4,2437.3,3.80041769]
[1728070165698,0.00827474,2437.4,2437.3,7.90331769]
[1728070166009,0.00827474,2437.4,2437.3,3.80041769]
[1728070172820,0.00827474,2437.4,2437.3,7.90331769]
[1728070173404,0.00827474,2437.4,2437.3,3.80041769]
[1728070178733,0.00827474,2437.4,2437.2,4.10306]
[1728070179643,0.00827474,2437.4,2437.3,0.68327521]
[1728070180038,0.00827474,2437.4,2437.2,4.10306]
[1728070181090,0.00827474,2437.4,2437.1,23.51114841]
[1728070181277,0.00827474,2437.4,2437.1,19.71073072]
[1728070181572,0.90586321,2437.4,2437.1,19.71073072]
[1728070181739,0.00827474,2437.2,2437.1,19.71073072]
[1728070181941,0.00827474,2437.2,2437.1,20.39422174]
[1728070183127,0.00827474,2437.2,2437.1,0.68349102]
[1728070183768,0.00827474,2437.2,2437.1,0.68372568]
[1728070185125,0.00827474,2437.2,2437.0,19.71073072]
[1728070185909,0.58800506,2437.2,2437.0,19.71073072]
[1728070186127,4.10351,2437.0,2436.6,4.10406]
[1728070186408,0.00827474,2436.7,2436.6,7.90447769]
[1728070186611,0.00827474,2436.7,2436.6,8.58889609]
[1728070187000,0.00827474,2436.7,2436.6,8.5888688]
[1728070187316,0.00827474,2436.7,2436.6,7.90447769]
[1728070187512,0.00827474,2436.7,2436.6,8.58888123]
[1728070189330,0.00827474,2436.7,2436.6,10.63615369]
[1728070189493,0.00827474,2436.7,2436.6,9.76871479]
[1728070189685,0.00827474,2436.7,2436.6,11.05358725]
[1728070190096,0.00827474,2436.7,2436.6,9.76871479]
[1728070190304,0.00827474,2436.7,2436.6,8.66687769]
[1728070190499,0.00827474,2436.7,2436.6,9.76864234]
[1728070190985,0.00827474,2436.7,2436.6,10.62401918]
[1728070191415,0.00827474,2436.7,2436.6,10.62420714]
[1728070192023,0.00827474,2436.7,2436.6,30.33493786]
[1728070192193,0.00827474,2436.7,2436.6,32.21716744]
[1728070192433,0.00827474,2436.7,2436.6,32.64639017]
[1728070193469,0.00827474,2436.7,2436.6,31.53290205]
[1728070194316,0.00827474,2436.7,2436.6,31.11526846]
[1728070194765,0.83487474,2436.7,2436.6,20.56643408]
[1728070194962,0.83487474,2436.7,2436.6,19.71073072]
[1728070195823,4.93878474,2436.7,2436.6,19.71073072]
[1728070197077,4.93528474,2436.7,2436.6,19.71073072]
[1728070197278,5.83918721,2436.7,2436.6,19.71073072]
[1728070197881,5.83918721,2436.7,2436.2,19.71073072]
[1728070198178,4.1041,2436.6,2436.2,19.71073072]
[1728070198388,0.00827474,2436.3,2436.2,19.71073072]
[1728070198977,4.59499243,2436.3,2436.2,19.71073072]
[1728070199180,4.59499243,2436.3,2435.8,19.71073072]
[1728070199181,4.88147,2436.2,2435.8,19.71073072]
[1728070199353,0.7766,2436.2,2435.9,19.71073072]
[1728070199559,0.00827474,2435.9,2435.7,19.71073072]
[1728070199930,0.00827474,2435.9,2435.8,23.81615072]
[1728070200243,0.00827474,2435.9,2435.8,24.61665072]
[1728070200449,0.00827474,2435.9,2435.8,28.41706841]
[1728070200778,0.00827474,2435.9,2435.8,27.36962789]
[1728070200966,0.00827474,2435.9,2435.8,24.61665072]
[1728070201164,0.00827474,2435.9,2435.8,19.71073072]
[1728070203088,0.00827474,2435.9,2435.8,23.81615072]
[1728070203567,0.00827474,2435.9,2435.8,19.71073072]
[1728070205991,0.00827474,2435.9,2435.8,24.59225072]
[1728070206198,0.00827474,2435.9,2435.8,27.84206656]
[1728070206966,0.00827474,2435.9,2435.8,19.71073072]
[1728070207797,4.11352474,2435.9,2435.8,19.71073072]
[1728070209004,4.94342474,2435.9,2435.8,19.71073072]
[1728070210472,8.74384243,2435.9,2435.8,19.71073072]
[1728070211575,0.8,2435.5,2434.9,4.92883]
[1728070211778,0.00827474,2435.0,2434.9,4.92883]
[1728070213513,0.00827474,2435.0,2434.9,8.72924769]
[1728070214018,0.00827474,2435.0,2434.9,12.70464505]
[1728070217716,0.00827474,2435.0,2434.9,8.35422736]
[1728070218084,0.00827474,2435.0,2434.9,5.35422736]
[1728070218429,0.00827474,2435.0,2434.9,4.92883]
[1728070219288,0.00827474,2435.0,2434.8,4.1071]
[1728070219493,0.00827474,2435.0,2434.9,4.10694]
[1728070221418,0.00827474,2435.0,2434.9,13.49249346]
[1728070221723,0.00827474,2435.0,2434.9,13.91722302]
[1728070223620,0.00827474,2435.0,2434.9,14.46397944]
[1728070224425,0.00827474,2435.0,2434.9,15.14742497]
[1728070224620,0.00827474,2435.0,2434.9,34.85815569]
[1728070226346,0.00827474,2435.0,2434.9,33.62795374]
[1728070226542,0.00827474,2435.0,2434.9,34.86238576]
[1728070229830,0.00827474,2435.0,2434.9,33.62795374]
[1728070230037,0.00827474,2435.0,2434.9,34.86266317]
[1728070233233,0.00827474,2435.0,2434.9,33.62795374]
[1728070233535,0.00827474,2435.0,2434.9,34.8628246]
[1728070239276,0.00827474,2435.0,2434.9,21.37033114]
[1728070239531,0.00827474,2435.0,2434.9,20.94560158]
[1728070240298,0.00827474,2435.0,2434.9,24.36650221]
[1728070241324,0.00827474,2435.0,2434.9,25.05325643]
[1728070241700,0.00827474,2435.0,2434.9,24.36650221]
[1728070242412,0.00827474,2435.0,2434.9,4.65577149]
[1728070243014,0.00827474,2435.0,2434.9,5.07499131]
[1728070243214,0.00827474,2435.0,2434.9,5.07499287]
[1728070243436,0.00827474,2435.0,2434.9,4.65577149]
[1728070243652,0.00827474,2435.0,2434.9,0.54883149]
[1728070243653,0.81467474,2435.0,2434.9,0.54883149]
[1728070243802,0.81467474,2435.0,2434.8,4.10702]
[1728070243803,1.30679521,2435.0,2434.8,4.10702]
[1728070245297,0.81467474,2435.0,2434.8,4.10702]
[1728070246945,0.81467474,2435.0,2434.8,8.21403]
[1728070247145,0.81467474,2435.0,2434.8,4.10701]
[1728070248538,0.81467474,2435.0,2434.9,4.10694]
[1728070248729,0.81467474,2435.0,2434.8,4.10701]
[1728070249099,0.00827474,2435.0,2434.9,4.10694]
[1728070250443,0.00827474,2435.0,2434.6,27.92541072]
[1728070250615,0.00827474,2434.7,2434.6,27.92541072]
[1728070250935,0.00827474,2434.7,2434.6,28.47478702]
[1728070251506,0.00827474,2434.7,2434.6,28.47485262]
[1728070251903,0.00827474,2434.7,2434.6,27.92541072]
[1728070252103,0.00827474,2434.7,2434.4,20.56643408]
[1728070252400,0.00827474,2434.7,2434.4,23.81851072]
[1728070252624,0.00827474,2434.7,2434.2,4.96372336]
[1728070252625,0.7764,2434.6,2434.2,4.96372336]
[1728070252824,0.00827474,2434.3,2434.2,4.96372336]
[1728070253060,0.00827474,2434.3,2434.2,4.65762112]
[1728070253233,0.00827474,2434.3,2434.2,4.10802]
[1728070253633,0.00827474,2434.3,2434.2,5.20696625]
[1728070254273,0.00827474,2434.3,2434.2,4.65760976]
[1728070255048,0.00827474,2434.3,2434.2,5.20675181]
[1728070255253,0.00827474,2434.3,2434.2,4.65760976]
[1728070255554,0.00827474,2434.3,2434.2,5.51271048]
[1728070255753,0.00827474,2434.3,2434.2,5.93744673]
[1728070256295,0.00827474,2434.3,2434.2,4.53275625]
[1728070257153,0.00827474,2434.3,2434.2,24.24348697]
[1728070261231,0.00827474,2434.3,2434.2,20.13546697]
[1728070262215,0.00827474,2434.3,2434.2,24.24358697]
[1728070265090,0.00827474,2434.3,2434.2,27.16059167]
[1728070265320,0.00827474,2434.3,2434.2,27.98319167]
[1728070269339,0.00827474,2434.3,2434.2,25.06618697]
[1728070269993,0.00827474,2434.3,2434.2,24.24358697]
[1728070270193,0.00827474,2434.3,2434.2,20.13546697]
[1728070271032,0.00827474,2434.3,2434.2,24.24358697]
[1728070273441,0.00827474,2434.3,2434.2,28.59978697]
[1728070273742,0.00827474,2434.3,2434.2,34.80651741]
[1728070273743,1e-08,2434.3,2434.2,34.80651741]
[1728070274036,1e-08,2434.3,2434.2,70.23744811]
[1728070275163,1e-08,2434.3,2434.2,68.09335413]
[1728070275364,1e-08,2434.3,2434.2,70.23558015]
[1728070275675,1e-08,2434.3,2434.2,68.09335413]
[1728070277485,1e-08,2434.3,2434.2,70.23588589]
[1728070277836,1e-08,2434.3,2434.2,34.2576954]
[1728070278445,1e-08,2434.3,2434.2,32.13255222]
[1728070278749,1e-08,2434.3,2434.2,30.07192854]
[1728070278977,1e-08,2434.3,2434.2,29.64338026]
[1728070279358,1e-08,2434.3,2434.2,28.78587172]
[1728070279663,1e-08,2434.3,2434.2,29.64348523]
[1728070279864,1e-08,2434.3,2434.2,32.64348523]
[1728070280242,1e-08,2434.3,2434.2,33.19348523]
[1728070281055,1e-08,2434.3,2434.2,33.19358444]
[1728070281634,1e-08,2434.3,2434.2,32.33587172]
[1728070282075,1e-08,2434.3,2434.2,33.62192854]
[1728070284602,1e-08,2434.3,2434.2,32.33587172]
[1728070284964,1e-08,2434.3,2434.2,33.62192854]
[1728070285368,1e-08,2434.3,2434.2,5.81891307]
[1728070285668,1e-08,2434.3,2434.2,4.53285625]
[1728070287463,0.79430001,2434.3,2434.2,4.53285625]
[1728070289499,0.79430001,2434.3,2434.2,0.42473625]
[1728070289682,0.79430001,2434.3,2434.2,19.71073072]
[1728070290007,0.79430001,2434.3,2434.2,23.81885072]
[1728070291519,1e-08,2434.3,2434.2,23.81885072]
[1728070294530,1e-08,2434.3,2434.2,19.71073072]
[1728070294731,1e-08,2434.3,2434.2,23.81885072]
[1728070295739,1e-08,2434.3,2434.2,4.10812]
[1728070298050,0.82560001,2434.3,2434.0,0.85868286]
[1728070298262,0.8256,2434.1,2433.8,0.85868286]
[1728070298551,0.493375,2434.0,2433.7,23.81954072]
[1728070298712,0.8256,2434.1,2433.7,23.81954072]
[1728070299126,0.8256,2434.1,2433.8,4.10878]
[1728070299878,0.7646,2434.3,2434.0,4.10846]
[1728070300037,0.00827474,2434.1,2434.0,4.10846]
[1728070306170,0.00827474,2434.1,2433.6,23.81982072]
[1728070306171,0.7989,2434.0,2433.6,23.81982072]
[1728070306330,0.00827474,2433.7,2433.6,19.71073072]
[1728070306531,0.77237474,2433.7,2433.6,19.71073072]
[1728070307369,0.77237474,2433.7,2433.6,23.81986072]
[1728070308430,0.77237474,2433.7,2433.6,19.71073072]
[1728070308835,0.77237474,2433.7,2433.4,4.10945]
[1728070309275,0.77237474,2433.7,2433.3,23.82035072]
[1728070309477,0.77237474,2433.7,2433.3,8.21919]
[1728070310535,0.77237474,2433.7,2433.3,4.10957]
[1728070310848,0.77237474,2433.7,2433.4,4.10943]
[1728070311047,0.77237474,2433.7,2433.5,4.10928]
[1728070312071,0.77237474,2433.7,2433.6,4.10913]
[1728070312072,0.00827474,2433.7,2433.6,4.10913]
[1728070313333,0.00827474,2433.7,2433.5,4.10929]
[1728070313539,0.00827474,2433.7,2433.6,19.71073072]
[1728070317840,0.00827474,2433.7,2433.6,7.57197588]
[1728070318081,0.00827474,2433.7,2433.6,13.39923247]
[1728070318390,0.00827474,2433.7,2433.6,33.53531723]
[1728070320478,0.00827474,2433.7,2433.6,34.39400009]
[1728070323787,0.00827474,2433.7,2433.6,35.2404777]
[1728070324360,0.00827474,2433.7,2433.6,33.95442088]
[1728070324689,0.00827474,2433.7,2433.6,35.2404777]
[1728070325373,0.00827474,2433.7,2433.6,34.82137405]
[1728070325561,0.00827474,2433.7,2433.6,35.24060987]
[1728070328690,0.00827474,2433.7,2433.6,33.95455305]
[1728070328889,0.00827474,2433.7,2433.6,35.66889432]
[1728070329251,0.00827474,2433.7,2433.6,36.01611375]
[1728070329451,0.00827474,2433.7,2433.6,33.95455305]
[1728070329771,0.00827474,2433.7,2433.6,35.59079865]
[1728070329963,0.00827474,2433.7,2433.6,35.24358721]
[1728070330167,0.00827474,2433.7,2433.6,35.24386086]
[1728070330366,0.00827474,2433.7,2433.6,35.66916797]
[1728070330764,0.00827474,2433.7,2433.6,36.01647152]
[1728070332907,6.79847588,2435.1,2433.6,36.01647152]
[1728070332908,0.7931,2435.8,2434.9,4.10692]
[1728070333122,0.7931,2435.8,2435.3,7.90474588]
[1728070333405,0.7931,2435.8,2435.7,4.10559]
[1728070333615,0.7931,2435.8,2435.7,7.90406588]
[1728070333768,0.7681,2436.1,2436.0,4.10509]
[1728070333965,0.7681,2436.1,2435.9,4.10516]
[1728070334273,0.7681,2436.1,2436.0,4.10509]
[1728070334860,0.7681,2436.1,2435.9,4.10516]
[1728070335076,0.7681,2436.1,2435.8,4.10542]
[1728070335314,1.255369,2436.1,2435.8,4.10542]
[1728070335603,0.7681,2436.1,2435.8,4.10542]
[1728070335915,0.7681,2436.1,2435.9,4.10516]
[1728070341308,0.7681,2436.1,2435.9,8.21031]
[1728070341691,0.7681,2436.1,2435.9,4.10515]
[1728070341895,0.7681,2436.1,2435.9,8.21032]
[1728070342302,0.7681,2436.1,2435.9,4.10515]
[1728070343137,0.7681,2436.1,2435.9,8.21032]
[1728070343288,0.7681,2436.1,2435.9,4.10515]
[1728070344116,0.7681,2436.1,2435.9,8.21031]
[1728070344585,0.7681,2436.1,2435.9,4.10515]
[1728070344928,0.7681,2436.1,2435.9,8.21031]
[1728070345920,0.7681,2436.1,2435.9,4.10515]
[1728070346128,0.7681,2436.1,2435.9,4.0741609]
[1728070347415,0.7681,2436.1,2435.9,8.1793309]
[1728070347927,0.7681,2436.1,2435.9,4.0741609]
[1728070348518,0.7681,2436.1,2435.9,8.1793409]
[1728070348701,0.7681,2436.1,2435.9,4.0741609]
[1728070350160,0.7681,2436.1,2435.7,23.81619072]
[1728070350438,0.487287,2436.0,2435.7,23.81619072]
[1728070350806,0.487287,2436.0,2435.7,27.92170072]
[1728070351658,0.487287,2436.0,2435.7,23.81619072]
[1728070352144,0.487287,2436.0,2435.7,27.92168072]
[1728070352301,0.487287,2436.0,2435.7,23.81619072]
[1728070353502,0.487287,2436.0,2435.8,4.10541]
[1728070353818,0.487287,2436.0,2435.7,23.81619072]
[1728070354230,0.5360317,2435.9,2435.7,23.81619072]
[1728070354853,0.487287,2436.0,2435.7,23.81619072]
[1728070355017,0.487287,2436.0,2435.7,4.10546]
[1728070355213,0.487287,2436.0,2435.7,8.21095]
[1728070355628,0.487287,2436.0,2435.7,4.10546]
[1728070356230,0.487287,2436.0,2435.7,8.21098]
[1728070356455,0.7681,2436.1,2435.8,7.90388588]
[1728070359839,0.7681,2436.1,2435.8,4.10541]
[1728070360069,0.8295,2436.3,2435.9,4.10523]
[1728070360303,0.8295,2436.3,2436.0,7.90349588]
[1728070360431,0.00827474,2436.1,2436.0,3.79847588]
[1728070361465,0.00827474,2436.1,2436.0,7.90356588]
[1728070361623,0.00827474,2436.1,2436.0,27.6142966]
[1728070363555,0.00827474,2436.1,2436.0,19.71073072]
[1728070363955,0.00827474,2436.1,2436.0,23.81582072]
[1728070364756,0.00827474,2436.1,2436.0,19.71073072]
[1728070366062,0.00827474,2436.1,2436.0,23.81582072]
[1728070366461,0.00827474,2436.1,2436.0,19.71073072]
[1728070366850,0.00827474,2436.1,2435.9,4.10514]
[1728070368489,0.00827474,2436.1,2435.9,8.21031]
[1728070368786,0.00827474,2436.1,2435.9,4.10514]
[1728070369188,0.00827474,2436.1,2435.9,8.2103]
[1728070369578,0.00827474,2436.1,2435.9,4.10514]
[1728070372108,0.00827474,2436.1,2435.7,27.92173072]
[1728070372254,0.00827474,2436.1,2435.8,4.10541]
[1728070372450,0.49918921,2436.1,2435.8,4.10541]
[1728070372795,0.00827474,2435.9,2435.8,4.10541]
[1728070373203,0.00827474,2435.9,2435.7,19.71073072]
[1728070373498,0.00827474,2435.9,2435.7,23.81623072]